fUSD/lending_fUSD_20250502
["ID","MTS","AMOUNT","RATE_DAILY","PERIOD"]
[359632475,1746198442650,-450.0,0.00019768,2]
[359632476,1746198442677,-450.0,0.00019768,2]
[359632477,1746198442702,-450.0,0.00019768,2]
[359632478,1746198442728,-450.0,0.00019768,2]
[359632479,1746198442754,-450.0,0.00019768,2]
[359632480,1746198442783,-450.0,0.00019768,2]
[359632481,1746198442810,-450.0,0.00019768,2]
[359632482,1746198442839,-450.0,0.00019768,2]
[359632483,1746198442864,-450.0,0.00019768,2]
[359632484,1746198442890,-566.78,0.00019768,2]
[359632485,1746198442917,-450.0,0.00019768,2]
[359632486,1746198442943,-450.0,0.00019768,2]
[359632487,1746198442969,-450.0,0.00019768,2]
[359632488,1746198442993,-450.0,0.00019768,2]
[359632489,1746198443017,-450.0,0.00019768,2]
[359632490,1746198443042,-719.76,0.00019768,2]
[359632491,1746198443067,-450.0,0.00019768,2]
[359632492,1746198443092,-628.09,0.00019768,2]
[359632493,1746198443119,-450.0,0.00019768,2]
[359632494,1746198443146,-450.0,0.00019768,2]
[359632495,1746198443172,-450.0,0.00019768,2]
[359632496,1746198443196,-450.0,0.00019768,2]
[359632497,1746198443221,-1355.51,0.00019768,2]
[359632498,1746198443247,-450.0,0.00019768,2]
[359632499,1746198443271,-450.0,0.00019768,2]
[359632500,1746198443298,-318.76601085,0.00019768,2]
[359632501,1746198443323,-450.0,0.00019768,2]
[359632502,1746198443349,-450.0,0.00019768,2]
[359632503,1746198443372,-450.0,0.00019768,2]
[359632504,1746198443397,-450.0,0.00019768,2]
[359632505,1746198443426,-450.0,0.00019768,2]
[359632506,1746198443452,-450.0,0.00019768,2]
[359632507,1746198443477,-450.0,0.00019768,2]
[359632508,1746198443502,-450.0,0.00019768,2]
[359632509,1746198443527,-460.35808729,0.00019768,2]
[359632510,1746198443552,-450.0,0.00019768,2]
[359632511,1746198443577,-765.95,0.00019768,2]
[359632512,1746198443601,-450.0,0.00019768,2]
[359632513,1746198443625,-839.08,0.00019768,2]
[359632514,1746198443651,-450.0,0.00019768,2]
[359632515,1746198443675,-450.0,0.00019768,2]
[359632516,1746198443702,-483.29,0.00019768,2]
[359632517,1746198443726,-450.0,0.00019768,2]
[359632518,1746198443752,-450.0,0.00019768,2]
[359632519,1746198443780,-450.0,0.00019768,2]
[359632520,1746198443806,-450.0,0.00019768,2]
[359632521,1746198443830,-770.94,0.00019768,2]
[359632522,1746198443854,-450.0,0.00019768,2]
[359632523,1746198443879,-542.07,0.00019768,2]
[359632524,1746198443903,-450.0,0.00019768,2]
[359632525,1746198443928,-450.0,0.00019768,2]
[359632526,1746198443954,-903.08,0.00019768,2]
[359632527,1746198443978,-516.74135919,0.00019768,2]
[359632528,1746198444004,-2246.36,0.00019768,2]
[359632529,1746198444028,-450.0,0.00019768,2]
[359632530,1746198444053,-450.0,0.00019768,2]
[359632531,1746198444077,-707.88,0.00019768,2]
[359632532,1746198444102,-450.0,0.00019768,2]
[359632533,1746198444147,-450.0,0.00019768,2]
[359632534,1746198444191,-450.0,0.00019768,2]
[359632535,1746198444234,-517.04,0.00019768,2]
[359632536,1746198444276,-450.0,0.00019768,2]
[359632537,1746198444315,-902.23,0.00019768,2]
[359632538,1746198444354,-1003.85,0.00019768,2]
[359632539,1746198444392,-955.75,0.00019768,2]
[359632540,1746198444430,-450.0,0.00019768,2]
[359632541,1746198444469,-450.0,0.00019768,2]
[359632542,1746198444508,-450.0,0.00019768,2]
[359632543,1746198444549,-450.0,0.00019768,2]
[359632544,1746198444590,-526.45,0.00019768,2]
[359632545,1746198444630,-821.96,0.00019768,2]
[359632546,1746198444671,-450.0,0.00019768,2]
[359632547,1746198444713,-450.0,0.00019768,2]
[359632548,1746198444753,-450.0,0.00019768,2]
[359632549,1746198444795,-450.0,0.00019768,2]
[359632550,1746198444838,-726.98,0.00019768,2]
[359632551,1746198444880,-450.0,0.00019768,2]
[359632552,1746198444923,-450.0,0.00019768,2]
[359632553,1746198444963,-450.0,0.00019768,2]
[359632554,1746198445006,-478.03787714,0.00019768,2]
[359632555,1746198445049,-566.67,0.00019768,2]
[359632556,1746198445094,-1096.81,0.00019768,2]
[359632557,1746198445138,-450.0,0.00019768,2]
[359632558,1746198445179,-450.0,0.00019768,2]
[359632559,1746198445218,-450.0,0.00019768,2]
[359632560,1746198445260,-450.0,0.00019768,2]
[359632561,1746198445300,-1420.49,0.00019768,2]
[359632562,1746198445341,-450.0,0.00019768,2]
[359632563,1746198445380,-450.0,0.00019768,2]
[359632564,1746198445419,-602.18,0.00019768,2]
[359632565,1746198445457,-450.0,0.00019768,2]
[359632566,1746198445497,-483.47,0.00019768,2]
[359632567,1746198445536,-450.0,0.00019768,2]
[359632568,1746198445578,-450.0,0.00019768,2]
[359632569,1746198445617,-450.0,0.00019768,2]
[359632570,1746198445657,-450.0,0.00019768,2]
[359632571,1746198445694,-450.0,0.00019768,2]
[359632572,1746198445731,-1413.16,0.00019768,2]
[359632573,1746198445775,-450.0,0.00019768,2]
[359632574,1746198445810,-300.0,0.00019768,2]
[359632575,1746198445851,-450.0,0.00019768,2]
[359632576,1746198445890,-1095.91,0.00019768,2]
[359632577,1746198445931,-450.0,0.00019768,2]
[359632578,1746198445969,-651.61,0.00019768,2]
[359632579,1746198446011,-450.0,0.00019768,2]
[359632580,1746198446051,-450.0,0.00019768,2]
[359632581,1746198446091,-450.0,0.00019768,2]
[359632582,1746198446135,-450.0,0.00019768,2]
[359632583,1746198446176,-450.0,0.00019768,2]
[359632584,1746198446215,-450.0,0.00019768,2]
[359632585,1746198446254,-1437.9,0.00019768,2]
[359632586,1746198446292,-450.0,0.00019768,2]
[359632587,1746198446332,-450.0,0.00019768,2]
[359632588,1746198446369,-613.24,0.00019768,2]
[359632589,1746198446406,-635.13,0.00019768,2]
[359632590,1746198446442,-450.0,0.00019768,2]
[359632591,1746198446484,-450.0,0.00019768,2]
[359632592,1746198446523,-667.72,0.00019768,2]
[359632593,1746198446559,-450.0,0.00019768,2]
[359632594,1746198446597,-824.11,0.00019768,2]
[359632595,1746198446632,-1818.97,0.00019768,2]
[359632596,1746198446672,-450.0,0.00019768,2]
[359632597,1746198446709,-1101.66,0.00019768,2]
[359632598,1746198446748,-707.6,0.00019768,2]
[359632599,1746198446790,-450.0,0.00019768,2]
[359632600,1746198446831,-450.0,0.00019768,2]
[359632601,1746198446871,-643.15,0.00019768,2]
[359632602,1746198446910,-566.96,0.00019768,2]
[359632603,1746198446946,-450.0,0.00019768,2]
[359632604,1746198446984,-450.0,0.00019768,2]
[359632605,1746198447027,-450.0,0.00019768,2]
[359632606,1746198447064,-450.0,0.00019768,2]
[359632607,1746198447104,-450.0,0.00019768,2]
[359632608,1746198447146,-450.0,0.00019768,2]
[359632609,1746198447186,-450.0,0.00019768,2]
[359632610,1746198447228,-450.0,0.00019768,2]
[359632611,1746198447270,-694.69,0.00019768,2]
[359632612,1746198447310,-450.0,0.00019768,2]
[359632613,1746198447355,-450.0,0.00019768,2]
[359632614,1746198447395,-450.0,0.00019768,2]
[359632615,1746198447435,-450.0,0.00019768,2]
[359632616,1746198447483,-507.63,0.00019768,2]
[359632617,1746198447526,-450.0,0.00019768,2]
[359632618,1746198447567,-450.0,0.00019768,2]
[359632619,1746198447607,-3089.25,0.00019768,2]
[359632620,1746198447645,-450.0,0.00019768,2]
[359632621,1746198447685,-300.3202691,0.00019768,2]
[359632622,1746198447723,-450.0,0.00019768,2]
[359632623,1746198447766,-450.0,0.00019768,2]
[359632624,1746198447807,-450.0,0.00019768,2]
[359632625,1746198447846,-450.0,0.00019768,2]
[359632626,1746198448009,-450.0,0.00019768,2]
[359632627,1746198448056,-591.46,0.00019768,2]
[359632628,1746198448097,-450.0,0.00019768,2]
[359632629,1746198448140,-450.0,0.00019768,2]
[359632630,1746198448180,-2957.23,0.00019768,2]
[359632631,1746198448219,-531.64,0.00019768,2]
[359632632,1746198448260,-1351.35,0.00019768,2]
[359632633,1746198448303,-450.0,0.00019768,2]
[359632634,1746198448342,-450.0,0.00019768,2]
[359632635,1746198448382,-441.29773002,0.00019768,2]
[359632636,1746198448421,-1294.05,0.00019768,2]
[359632637,1746198448459,-450.0,0.00019768,2]
[359632638,1746198448501,-1074.42,0.00019768,2]
[359632639,1746198448540,-900.83,0.00019768,2]
[359632640,1746198448579,-1462.57,0.00019768,2]
[359632641,1746198448617,-500.0,0.00019768,2]
[359632642,1746198448655,-465.43,0.00019768,2]
[359632643,1746198448695,-2697.74,0.00019768,2]
[359632644,1746198448735,-535.65,0.00019768,2]
[359632645,1746198448788,-450.0,0.00019768,2]
[359632646,1746198448828,-1020.47,0.00019768,2]
[359632647,1746198448870,-450.0,0.00019768,2]
[359632648,1746198448909,-450.0,0.00019768,2]
[359632649,1746198448954,-488.5,0.00019768,2]
[359632650,1746198449000,-4520.79,0.00019768,2]
[359632651,1746198449043,-450.0,0.00019768,2]
[359632652,1746198449088,-871.52,0.00019768,2]
[359632653,1746198449130,-450.0,0.00019768,2]
[359632654,1746198449172,-450.0,0.00019768,2]
[359632655,1746198449214,-472.94,0.00019768,2]
[359632656,1746198449256,-749.87,0.00019768,2]
[359632657,1746198449296,-450.0,0.00019768,2]
[359632658,1746198449335,-568.92,0.00019768,2]
[359632659,1746198449376,-899.05,0.00019768,2]
[359632660,1746198449416,-450.0,0.00019768,2]
[359632661,1746198449457,-896.72,0.00019768,2]
[359632662,1746198449500,-533.36,0.00019768,2]
[359632663,1746198449541,-647.97,0.00019768,2]
[359632664,1746198449581,-248.25267956,0.00019768,2]
[359632665,1746198449619,-1149.4,0.00019768,2]
[359632666,1746198449662,-1326.98,0.00019768,2]
[359632667,1746198449703,-6025.96,0.00019768,2]
[359632668,1746198449744,-6383.43,0.00019768,2]
[359632669,1746198449785,-6082.34,0.00019768,2]
[359632670,1746198449824,-898.11,0.00019768,2]
[359632671,1746198449866,-6275.11,0.00019768,2]
[359632672,1746198449906,-119320.71,0.00019768,2]
[359632673,1746198449946,-6519.11,0.00019768,2]
[359632674,1746198449987,-34103.1,0.00019768,2]
[359632675,1746198450029,-2283.26,0.00019768,2]
[359632676,1746198450075,-20177.15,0.00019768,2]
[359632677,1746198450121,-1020.47,0.00019769,2]
[359632678,1746198450169,-908.67696862,0.00019771,2]
[359632679,1746198450210,-1560.68015884,0.00019771,2]
[359632680,1746198450252,-500.87017698,0.00019773,2]
[359632681,1746198450295,-500.0,0.00019773,2]
[359632682,1746198450336,-500.0,0.00019773,2]
[359632683,1746198450377,-500.0,0.00019773,2]
[359632684,1746198450418,-500.0,0.00019773,2]
[359632685,1746198450457,-500.87742497,0.00019773,2]
[359632686,1746198450495,-500.0,0.00019773,2]
[359632687,1746198450543,-908.67696862,0.00019796,2]
[359632688,1746198450585,-1560.68015884,0.00019797,2]
[359632689,1746198450623,-1719.2617867,0.00019799,2]
[359632690,1746198450664,-1000.0,0.000198,2]
[359632691,1746198450705,-908.67696862,0.00019822,2]
[359632692,1746198450745,-1560.68015884,0.00019823,2]
[359632693,1746198450789,-500.0,0.0001984,2]
[359632694,1746198450830,-2000.0,0.0001984,2]
[359632695,1746198450874,-200.0,0.0001984,2]
[359632696,1746198450916,-908.67696862,0.00019848,2]
[359632697,1746198450957,-455.92934282,0.00019848,2]
[359632698,1746198453071,1190.36,0.00018911,2]
[359632699,1746198453990,4000.0,0.00018915,2]
[359632700,1746198455087,150.0,1e-08,2]
[359632701,1746198494801,627.07,0.00018956,2]
[359632702,1746198521070,392.19,0.00018949,2]
[359632703,1746198541480,1852.42,0.00018956,2]
[359632704,1746198605489,2164.91,0.00019,2]
[359632705,1746198607221,2164.91,0.00019,2]
[359632706,1746198617782,174.39,0.0001517,2]
[359632713,1746198631609,-176.51281845,0.00019661,2]
[359632714,1746198631619,-234.7222433,0.00019668,2]
[359632715,1746198631631,-133.7978567,0.00019668,2]
[359632716,1746198631640,-324.2031211,0.00019668,2]
[359632717,1746198631657,-441.681,0.00019668,2]
[359632718,1746198631786,-667.57590564,0.00019668,2]
[359632719,1746198631798,-589.53287258,0.00019668,2]
[359632720,1746198631811,-477.00710068,0.00019668,2]
[359632721,1746198631821,-200.0,0.00019714,2]
[359632722,1746198631835,-250.0,0.00019714,2]
[359632723,1746198631845,-300.0,0.00019765,2]
[359632724,1746198631854,-225.26811247,0.00019765,2]
[359632758,1746198637687,-974.73188753,0.00019765,2]
[359632759,1746198637696,-209.90859299,0.00019765,2]
[359632760,1746198637844,-90.09140701,0.00019765,2]
[359632761,1746198637853,-408.34160954,0.00019766,2]
[359632762,1746198637865,-41.65839046,0.00019766,2]
[359632763,1746198637876,-450.0,0.00019766,2]
[359632764,1746198637886,-450.0,0.00019766,2]
[359632765,1746198637895,-389.39397556,0.00019766,2]
[359632766,1746198637927,-60.60602444,0.00019766,2]
[359632767,1746198637936,-450.0,0.00019766,2]
[359632768,1746198637946,-450.0,0.00019766,2]
[359632769,1746198637956,-712.25,0.00019766,2]
[359632770,1746198637965,-582.32,0.00019766,2]
[359632771,1746198637975,-450.0,0.00019766,2]
[359632772,1746198637984,-488.8,0.00019766,2]
[359632773,1746198637994,-862.78,0.00019766,2]
[359632774,1746198638003,-450.0,0.00019766,2]
[359632775,1746198638013,-749.0,0.00019766,2]
[359632776,1746198638022,-450.0,0.00019766,2]
[359632777,1746198638033,-450.0,0.00019766,2]
[359632778,1746198638043,-450.0,0.00019766,2]
[359632779,1746198638056,-450.0,0.00019766,2]
[359632780,1746198638065,-626.78,0.00019766,2]
[359632781,1746198638075,-7867.52,0.00019766,2]
[359632783,1746198638085,-747.13,0.00019766,2]
[359632784,1746198638095,-450.0,0.00019766,2]
[359632785,1746198638104,-1550.4,0.00019766,2]
[359632786,1746198638114,-701.68,0.00019766,2]
[359632787,1746198638124,-1034.137739,0.00019766,2]
[359632789,1746198638134,-450.0,0.00019766,2]
[359632790,1746198638143,-450.0,0.00019766,2]
[359632792,1746198638153,-450.0,0.00019766,2]
[359632794,1746198638163,-799.946018,0.00019766,2]
[359632796,1746198638172,-500.22157796,0.00019766,2]
[359632798,1746198638182,-500.0,0.00019766,2]
[359632800,1746198638192,-500.0,0.00019766,2]
[359632802,1746198638201,-500.0,0.00019766,2]
[359632803,1746198638211,-500.0,0.00019766,2]
[359632805,1746198638221,-500.0,0.00019766,2]
[359632807,1746198638230,-168.40486465,0.00019766,2]
[359632808,1746198638240,-500.0,0.00019766,2]
[359632809,1746198638249,-500.0,0.00019766,2]
[359632810,1746198638259,-500.0,0.00019766,2]
[359632811,1746198638268,-500.0,0.00019766,2]
[359632812,1746198638277,-500.0,0.00019766,2]
[359632813,1746198638287,-500.0,0.00019766,2]
[359632814,1746198638296,-500.0,0.00019766,2]
[359632815,1746198638305,-500.0,0.00019766,2]
[359632816,1746198638314,-568.92,0.00019767,2]
[359632817,1746198638324,-838.57,0.00019767,2]
[359632818,1746198638333,-678.38,0.00019767,2]
[359632819,1746198638343,-2779.34,0.00019767,2]
[359632820,1746198638352,-450.4,0.00019767,2]
[359632821,1746198638361,-450.0,0.00019767,2]
[359632822,1746198638370,-1565.19,0.00019767,2]
[359632823,1746198638379,-450.0,0.00019767,2]
[359632824,1746198638389,-1101.5,0.00019767,2]
[359632825,1746198638398,-450.0,0.00019767,2]
[359632826,1746198638407,-893.23,0.00019767,2]
[359632827,1746198638417,-450.0,0.00019767,2]
[359632828,1746198638426,-542.94,0.00019767,2]
[359632829,1746198638435,-1271.69,0.00019767,2]
[359632830,1746198638445,-450.0,0.00019767,2]
[359632831,1746198638454,-864.64,0.00019767,2]
[359632832,1746198638463,-450.0,0.00019767,2]
[359632833,1746198638474,-717.07771415,0.00019767,2]
[359632834,1746198638486,-198.85228585,0.00019767,2]
[359632835,1746198638495,-1572.40091381,0.00019767,2]
[359632836,1746198638523,-500.0,0.00019766,2]
[359632837,1746198638533,-449.95908619,0.00019767,2]
[359632838,1746198638543,-450.0,0.00019767,2]
[359632839,1746198638552,-870.68,0.00019767,2]
[359632840,1746198638562,-450.0,0.00019767,2]
[359632841,1746198638571,-450.0,0.00019767,2]
[359632842,1746198638581,-450.0,0.00019767,2]
[359632843,1746198638590,-450.0,0.00019767,2]
[359632844,1746198638600,-450.0,0.00019767,2]
[359632845,1746198638609,-450.0,0.00019767,2]
[359632846,1746198638619,-1274.97662778,0.00019767,2]
[359632855,1746198639814,-500.0,0.00019766,2]
[359632856,1746198639824,-500.0,0.00019766,2]
[359632857,1746198639838,-500.0,0.00019766,2]
[359632858,1746198639848,-500.0,0.00019766,2]
[359632859,1746198639856,-315.58999994,0.00019766,2]
[359632860,1746198639867,-184.41000006,0.00019766,2]
[359632861,1746198639878,-500.0,0.00019766,2]
[359632862,1746198639887,-4499.90337222,0.00019767,2]
[359632863,1746198639896,-790.97,0.00019767,2]
[359632864,1746198639907,-787.71,0.00019767,2]
[359632865,1746198639917,-450.0,0.00019767,2]
[359632866,1746198639927,-450.0,0.00019767,2]
[359632867,1746198639936,-450.0,0.00019767,2]
[359632868,1746198639947,-450.0,0.00019767,2]
[359632869,1746198639956,-720.05,0.00019767,2]
[359632870,1746198639966,-258.53200971,0.00019767,2]
[359632871,1746198639992,-405.84799029,0.00019767,2]
[359632872,1746198640002,-450.0,0.00019767,2]
[359632873,1746198640012,-144.15200971,0.00019767,2]
[359632874,1746198640023,-382.26942703,0.00019767,2]
[359632875,1746198640035,-5591.02856326,0.00019767,2]
[359632876,1746198640045,-903.98,0.00019767,2]
[359632877,1746198640055,-450.0,0.00019767,2]
[359632878,1746198640066,-463.19,0.00019767,2]
[359632879,1746198640075,-543.06,0.00019767,2]
[359632880,1746198640084,-450.0,0.00019767,2]
[359632881,1746198640094,-450.0,0.00019767,2]
[359632882,1746198640103,-643.15,0.00019767,2]
[359632883,1746198640117,-450.0,0.00019767,2]
[359632884,1746198640127,-12046.29,0.00019767,2]
[359632885,1746198640137,-450.0,0.00019767,2]
[359632886,1746198640147,-5828.91,0.00019767,2]
[359632887,1746198640157,-450.0,0.00019767,2]
[359632888,1746198640168,-1361.3,0.00019767,2]
[359632889,1746198640178,-450.0,0.00019767,2]
[359632890,1746198640188,-450.0,0.00019767,2]
[359632891,1746198640198,-581.62,0.00019767,2]
[359632892,1746198640208,-450.0,0.00019767,2]
[359632893,1746198640217,-450.0,0.00019767,2]
[359632894,1746198640227,-450.0,0.00019767,2]
[359632895,1746198640237,-645.36,0.00019767,2]
[359632896,1746198640246,-860.69,0.00019767,2]
[359632897,1746198640255,-450.0,0.00019767,2]
[359632898,1746198640265,-450.0,0.00019767,2]
[359632899,1746198640274,-463.33,0.00019767,2]
[359632900,1746198640284,-450.0,0.00019767,2]
[359632901,1746198640293,-450.0,0.00019767,2]
[359632902,1746198640302,-569.02,0.00019767,2]
[359632903,1746198640311,-450.0,0.00019767,2]
[359632904,1746198640321,-450.0,0.00019767,2]
[359632905,1746198640330,-669.77,0.00019767,2]
[359632906,1746198640339,-450.0,0.00019767,2]
[359632907,1746198640349,-1312.82,0.00019767,2]
[359632908,1746198640358,-450.0,0.00019767,2]
[359632909,1746198640368,-450.0,0.00019767,2]
[359632910,1746198640377,-450.0,0.00019767,2]
[359632911,1746198640387,-450.0,0.00019767,2]
[359632912,1746198640396,-1060.86,0.00019767,2]
[359632913,1746198640406,-450.0,0.00019767,2]
[359632914,1746198640416,-490.73,0.00019767,2]
[359632915,1746198640425,-474.04,0.00019767,2]
[359632916,1746198640434,-6013.65,0.00019767,2]
[359632917,1746198640444,-448.12202068,0.00019767,2]
[359632918,1746198640453,-450.0,0.00019767,2]
[359632919,1746198640463,-565.98,0.00019767,2]
[359632920,1746198640472,-8072.09,0.00019767,2]
[359632921,1746198640481,-546.24213029,0.00019767,2]
[359632922,1746198640491,-1050.24,0.00019767,2]
[359632923,1746198640500,-114349.01,0.00019767,2]
[359632924,1746198640509,-574.1,0.00019767,2]
[359632925,1746198640519,-620.0,0.00019767,2]
[359632926,1746198640528,-250.33,0.00019767,2]
[359632927,1746198640538,-450.0,0.00019767,2]
[359632928,1746198640547,-587.68,0.00019767,2]
[359632929,1746198640557,-450.0,0.00019767,2]
[359632930,1746198640567,-450.0,0.00019767,2]
[359632931,1746198640576,-450.0,0.00019767,2]
[359632932,1746198640586,-141396.72,0.00019767,2]
[359632933,1746198640595,-450.0,0.00019767,2]
[359632934,1746198640604,-450.0,0.00019767,2]
[359632935,1746198640614,-450.0,0.00019767,2]
[359632936,1746198640623,-6247.48,0.00019767,2]
[359632937,1746198640633,-534.96,0.00019767,2]
[359632938,1746198640642,-450.0,0.00019767,2]
[359632939,1746198640651,-608.67,0.00019767,2]
[359632940,1746198640661,-737.27,0.00019767,2]
[359632941,1746198640671,-450.0,0.00019767,2]
[359632942,1746198640680,-32682.14,0.00019767,2]
[359632943,1746198640690,-601.03,0.00019767,2]
[359632944,1746198640699,-639.9,0.00019767,2]
[359632945,1746198640708,-450.0,0.00019767,2]
[359632946,1746198640718,-450.0,0.00019767,2]
[359632947,1746198640727,-450.0,0.00019767,2]
[359632948,1746198640737,-1772.91,0.00019767,2]
[359632949,1746198640746,-2188.12,0.00019767,2]
[359632950,1746198640755,-450.0,0.00019767,2]
[359632951,1746198640765,-1230.69,0.00019767,2]
[359632952,1746198640775,-1743.18,0.00019767,2]
[359632953,1746198640784,-543.31,0.00019767,2]
[359632954,1746198640794,-450.0,0.00019767,2]
[359632955,1746198640803,-205.27281233,0.00019767,2]
[359632956,1746198640812,-19336.44,0.00019767,2]
[359632957,1746198640822,-450.0,0.00019767,2]
[359632958,1746198640835,-708.83,0.00019767,2]
[359632959,1746198640845,-450.0,0.00019767,2]
[359632960,1746198640854,-450.0,0.00019767,2]
[359632961,1746198640864,-637.62,0.00019767,2]
[359632962,1746198640874,-450.0,0.00019767,2]
[359632964,1746198640884,-543.34,0.00019767,2]
[359632965,1746198640894,-797.79,0.00019767,2]
[359632966,1746198640903,-450.0,0.00019767,2]
[359632967,1746198640913,-401.3356733,0.00019767,2]
[359632968,1746198640924,-450.0,0.00019767,2]
[359632969,1746198640933,-618.03,0.00019767,2]
[359632970,1746198640943,-521.29,0.00019767,2]
[359632971,1746198640953,-601.91,0.00019767,2]
[359632972,1746198640963,-926.11,0.00019767,2]
[359632973,1746198640972,-450.0,0.00019767,2]
[359632974,1746198640982,-450.0,0.00019767,2]
[359632975,1746198640992,-684.61,0.00019767,2]
[359632976,1746198641001,-450.0,0.00019767,2]
[359632977,1746198641011,-453.24,0.00019767,2]
[359632978,1746198641021,-2926.44,0.00019767,2]
[359632979,1746198641030,-450.0,0.00019767,2]
[359632980,1746198641040,-689.77,0.00019767,2]
[359632981,1746198641050,-1375.4094293,0.00019799,2]
[359632982,1746198641059,-176.51281845,0.00019822,2]
[359632983,1746198641068,-2494.60015428,0.0001983,2]
[359632984,1746198641079,-908.67696862,0.00019874,2]
[359632985,1746198641088,-2619.1242,0.00019886,2]
[359632986,1746198641098,-2162.0964,0.00019886,2]
[359632987,1746198641107,-797.0,0.00019888,2]
[359632988,1746198641117,-5800.0,0.00019892,2]
[359632989,1746198641126,-162.61162374,0.000199,2]
[359632990,1746198641135,-261.27175557,0.000199,2]
[359632991,1746198641149,-5800.0,0.000199,2]
[359632992,1746198641162,-1000.0,0.000199,2]
[359632993,1746198641172,-908.67696862,0.000199,2]
[359632994,1746198641183,-163.57518956,0.000199,2]
[359632995,1746198641193,-4226.1111337,0.000199,2]
[359632996,1746198641203,-189.39229872,0.000199,3]
[359632997,1746198641213,-913.11972996,0.000199,2]
[359632998,1746198641222,-297.05834318,0.000199,2]
[359632999,1746198641232,-9986.53570268,0.000199,2]
[359633000,1746198641241,-2089.506,0.00019939,2]
[359633001,1746198641250,-165.8,0.00019939,2]
[359633002,1746198641260,-4006.0,0.0001994,2]
[359633003,1746198641269,-6753.0,0.0001994,2]
[359633004,1746198641279,-153.0,0.0001994,2]
[359633005,1746198641289,-878.0,0.0001994,2]
[359633006,1746198641298,-151.0,0.00019943,2]
[359633007,1746198641308,-207.4,0.00019953,2]
[359633008,1746198641317,-151.0,0.00019954,2]
[359633009,1746198641326,-151.0,0.00019954,2]
[359633010,1746198641335,-668.65185757,0.00019954,2]
[359633011,1746198641345,-501.47327578,0.00019973,2]
[359633012,1746198641354,-543.3110312,0.00019973,2]
[359633013,1746198641364,-306.32642117,0.00019973,2]
[359633014,1746198641374,-500.0,0.00019973,2]
[359633015,1746198641383,-500.0,0.00019973,2]
[359633016,1746198641393,-501.66333751,0.00019973,2]
[359633017,1746198641402,-500.0,0.00019973,2]
[359633018,1746198641412,-500.0,0.00019973,2]
[359633019,1746198641423,-500.0,0.00019973,2]
[359633020,1746198641432,-500.0,0.00019973,2]
[359633021,1746198641442,-185.86498536,0.00019973,2]
[359633022,1746198641451,-500.4284128,0.00019973,2]
[359633023,1746198641461,-1020.47,0.00019985,2]
[359633024,1746198641470,-701.03,0.00019985,2]
[359633025,1746198641479,-217.11897616,0.0001999,2]
[359633026,1746198641488,-217.11897616,0.0001999,2]
[359633027,1746198641498,-500.0,0.00019999,2]
[359633028,1746198641507,-666.0,0.00019999,2]
[359633029,1746198641517,-500.0,0.00019999,2]
[359633030,1746198641526,-300.0,0.00019999,2]
[359633031,1746198641537,-300.0,0.00019999,2]
[359633032,1746198641547,-500.0,0.00019999,2]